Cogmind - Beta 11.1 @@@ ROGUE MODE // 2022.11.29 @ 01:21:41 Player: Horse Result: Destroyed by Y-45 Defender with Beam Rifle Performance ------------- Evolutions (1) 500 Regions Visited (2) 400 Robots Destroyed (49) 245 Value Destroyed (1137) 1137 Prototype IDs (3) 60 Alien Tech Used (0) 0 Bonus (0) 0 TOTAL SCORE: 2342 Bonus ------- None Cogmind --------- Core Integrity 0/400 Matter 253/300 Energy 280/280 System Corruption 0% Temperature Cool (9) Movement Core (600) Ox11 Location -9/Materials Parts ------- > --- POWER (1) -------- Cooled Ion Engine > --- PROPULSION (2) --- (None) > --- UTILITY (4) ------ Large Storage Unit Core Shielding Weapon Shielding Hacking Suite > --- WEAPON (2) ------- Katana Katana > --- INVENTORY (15) --- Weight Redist. System Structural Scanner Signal Interpreter Seismic Detector Trap Extractor (0/4) Improved Assault Rifle Improved Assault Rifle Improved Assault Rifle Rocket Launcher Datajack Heavy Mace Peak State ------------ > --- POWER ------------ Cooled Ion Engine > --- PROPULSION ------- Improved Aluminum Leg Improved Aluminum Leg > --- UTILITY ---------- Large Storage Unit Weight Redist. System Melee Analysis Suite Hacking Suite > --- WEAPON ----------- Katana Katana > --- INVENTORY -------- Ion Engine Improved Aluminum Leg Improved Aluminum Leg Structural Scanner Signal Interpreter Seismic Detector Core Shielding Weapon Shielding Particle Gun Improved Assault Rifle Improved Assault Rifle Improved Assault Rifle Improved Assault Rifle Datajack [Rating: 24] Favorites ----------- Power Ion Engine Engine Ion Engine Propulsion Improved Aluminum Leg Leg Improved Aluminum Leg Wheel Compact Wheel Utility Large Storage Unit Device Weight Redist. System Storage Large Storage Unit Processor Melee Analysis Suite Hackware Hacking Suite Protection Weapon Shielding Weapon Improved Assault Rifle Energy Gun EM Pulse Gun Ballistic Gun Improved Assault Rifle Slashing Weapon Katana Build | -11 -10 -9 ------- Run | Scr Mat Mat Slots Evolved 2 | . . 2 Power . | . . . Propulsion . | . . . Utility 2 | . . 2 Weapon . | . . . Parts Attached 54 | 6 19 29 Power 6 | 1 1 4 Engine 6 | 1 1 4 Core . | . . . Reactor . | . . . Propulsion 14 | 2 5 7 Treads . | . . . Leg 12 | . 5 7 Wheel 2 | 2 . . Hover . | . . . Flight . | . . . Utility 26 | 1 9 16 Device 10 | . 3 7 Storage 3 | 1 2 . Processor 1 | . . 1 Hackware 1 | . 1 . Protection 11 | . 3 8 Artifact . | . . . Weapon 8 | 2 4 2 Energy Gun 3 | 2 1 . Energy Cannon . | . . . Ballistic Gun 3 | . 3 . Ballistic Cannon . | . . . Launcher . | . . . Special Weapon . | . . . Impact Weapon . | . . . Slashing Weapon 2 | . . 2 Piercing Weapon . | . . . Special Melee Weapon . | . . . Unidentified Prototypes 2 | . 1 1 Parts Lost 9 | . 3 6 Power 1 | . . 1 Propulsion 4 | . 1 3 Utility 3 | . 1 2 Weapon 1 | . 1 . Highest Loss Streak 5 | . 2 5 To Critical Strikes . | . . . Average Slot Usage (%) 99 | . 99 98 Engine 12 | . 14 10 Leg 23 | . 24 21 Wheel 1 | . 3 . Device 9 | . 6 14 Storage 12 | . 14 11 Processor 1 | . . 3 Hackware 6 | . 3 11 Protection 4 | . 4 3 Energy Gun 5 | . 9 . Ballistic Gun 13 | . 18 8 Slashing Weapon 6 | . . 13 Naked Turns . | . . . Heaviest Build 52 | 14 52 36 Greatest Support 32 | 32 32 32 Greatest Overweight (x) 3 | . 2 3 Average Overweight (x) . | . . . Largest Inventory Capacity 20 | 8 20 15 Average Capacity 14 | 6 15 15 Most Carried 15 | 6 15 15 Average Carried 12 | 4 12 13 Final Capacity 15 | 8 15 15 Final Carried 15 | 6 15 11 Class Distribution -------------------- 74% | Mutant 25% | Scavenger-Mutant Dominant Class ---------------- Mutant | -10/Materials Scavenger-Mutant | -9/Materials Resources | -11 -10 -9 ----------- Run | Scr Mat Mat Matter Collected 950 | 211 261 478 Remotely . | . . . Salvage Created 1758 | . 758 1000 Parts 125 | . 66 59 Haulers Intercepted 5 | . 2 3 Recyclers Shooed . | . . . Parts Field Recycled . | . . . Retrieved Matter . | . . . Parts Self-Destructed . | . . . Prevented . | . . . Kills | -11 -10 -9 ------- Run | Scr Mat Mat Combat Hostiles Destroyed 29 | . 12 17 Melee 8 | . . 8 Guns 20 | . 11 9 AOE 1 | . 1 . Classes Destroyed 10 | . 7 3 Worker 5 | . 5 . Builder 1 | . 1 . Hauler 5 | . 2 3 Recycler 1 | . . 1 Operator 2 | . 2 . Watcher 6 | . 3 3 Swarmer 6 | . 3 3 Grunt 15 | . 9 6 Duelist 2 | . . 2 Sentry 6 | . . 6 Best Kill Streak 8 | . 8 5 Combat Bots Only 4 | . 4 4 Max Kills in Single Turn 3 | . 3 1 Gunslinging 1 | . 1 . Exploded 1 | . 1 . Melee 1 | . . 1 Uniques/NPCs Destroyed . | . . . Combat | -11 -10 -9 -------- Run | Scr Mat Mat Damage Taken 1928 | . 626 1302 Core 554 | . 146 408 Absorbed by Shields . | . . . Redirected to Shielding 51 | . 19 32 Regen/Repaired (Parts) 81 | . 27 54 Core Remaining (%) 70 | 100 41 . Volleys Fired 78 | . 51 27 Largest 2 | . 2 2 Hottest 80 | . 80 46 Shots Fired 155 | . 101 54 Gun 155 | . 101 54 Cannon . | . . . Launcher . | . . . Special . | . . . Kinetic 99 | . 45 54 Thermal . | . . . Explosive . | . . . Electromagnetic 56 | . 56 . Robot Hit Streak 20 | . 6 20 Robot Miss Streak 4 | . 4 3 Penetration Max . | . . . Secondary Targets 6 | . 5 1 Max Gunslinging Chain 1 | . 1 1 Shots Hit Robots 133 | . 58 75 Core Hits 69 | . 36 33 Critical Kills . | . . . Critical Parts Destroyed 1 | . 1 . Critical Strikes 6 | . 1 5 Destroy 1 | . 1 . Sever 5 | . . 5 Melee Attacks 45 | . . 45 Impact . | . . . Slashing 45 | . . 45 Piercing . | . . . Sneak Attacks 1 | . . 1 Combat Hostiles 1 | . . 1 Follow-up Attacks 6 | . . 6 Damage Inflicted 2629 | . 915 1714 Guns 1497 | . 833 664 Cannons . | . . . Explosions 82 | . 82 . Melee 1050 | . . 1050 Ramming . | . . . Kinetic 1008 | . 344 664 Thermal 82 | . 82 . Explosive . | . . . Electromagnetic 489 | . 489 . Impact . | . . . Slashing 1050 | . . 1050 Piercing . | . . . Highest Corruption . | . . . Average Corruption . | . . . Corruption Purged . | . . . Corruption Blocked . | . . . Overload Shots . | . . . Overflow Damage 11 | . . 11 Projectiles . | . . . Explosions . | . . . Melee 11 | . . 11 Knockbacks . | . . . Impact . | . . . Kinetic . | . . . Secondary . | . . . Self-Inflicted Damage . | . . . Shots . | . . . Rammed . | . . . Targets Rammed . | . . . Kicked . | . . . Crushed . | . . . Highest Temperature 239 | . 239 5 Average Temperature 93 | . 95 2 Received Heat Transfer 726 | . 330 396 Siege Activations . | . . . Robots Corrupted . | . . . Combat Hostiles . | . . . Parts Fried 1 | . 1 . Impact Corruptions . | . . . Robots Melted . | . . . Combat Hostiles . | . . . Parts Melted . | . . . Heat Transferred 50 | . 50 . Parts Sabotaged . | . . . Parts Stolen . | . . . Parts Stripped . | . . . Power Chain Reactions 1 | . 1 . Missiles Intercepted . | . . . Alert | -11 -10 -9 ------- Run | Scr Mat Mat Peak Influence 298 | . 257 298 Initial 10 | . . 10 Average 103 | . 75 143 Maximum Alert Level 1 | . 1 1 Low Security (%) 88 | 100 94 81 Level 1 11 | . 5 18 Level 2 . | . . . Level 3 . | . . . Level 4 . | . . . Level 5 . | . . . High Security . | . . . Max Security . | . . . Squads Dispatched 2 | . 2 . Investigation 1 | . 1 . Extermination . | . . . Reinforcement 1 | . 1 . Assault . | . . . Garrison . | . . . Intercept . | . . . Searches Triggered . | . . . Construction Impeded . | . . . Haulers Reinforced . | . . . Active Scanning Responses . | . . . Cargo Convoy Interrupts . | . . . Stealth | -11 -10 -9 --------- Run | Scr Mat Mat Distress Signals 3 | . . 3 Communications Jammed . | . . . Distress Signals . | . . . Times Spotted 44 | . 18 26 Peak Tracking Total 8 | . 4 8 Tactical Retreats 2 | . 1 1 Traps | -11 -10 -9 ------- Run | Scr Mat Mat Traps Triggered 3 | . 1 2 Indirectly . | . . . Trap Hack Attempts . | . . . Triggered . | . . . Disarmed . | . . . Reprogrammed 1 | . 1 . Reused . | . . . Traps Extracted . | . . . Installed . | . . . Triggered . | . . . Machines | -11 -10 -9 ---------- Run | Scr Mat Mat Machines Disabled 1 | . . 1 Max in Single Turn 1 | . . 1 Machines Sabotaged . | . . . Garrisons Compromised . | . . . Overloaded Fab Kills . | . . . Hacking | -11 -10 -9 --------- Run | Scr Mat Mat Machines Accessed 12 | . 6 6 Terminals 8 | . 3 5 Fabricators . | . . . Repair Stations 2 | . 1 1 Recycling Units 2 | . 2 . Scanalyzers . | . . . Garrison Access . | . . . Total Hacks 50 | . 28 22 Successful 33 | . 19 14 Failed 16 | . 8 8 Catastrophic 1 | . . 1 Database Lockouts 1 | . 1 . Manual 31 | . 20 11 Terminals 38 | . 20 18 Fabricators . | . . . Repair Stations 8 | . 4 4 Recycling Units 4 | . 4 . Scanalyzers . | . . . Garrison Access . | . . . Terminal Hacks 12 | . 6 6 Robot Analysis 2 | . 2 . Prototype ID Bank 1 | . . 1 Terminal Index 2 | . 1 1 Alert Level 1 | . 1 . Unreport Threat 2 | . 1 1 Locate Traps 2 | . . 2 Reprogram Traps 1 | . 1 . Hauler Manifests 1 | . . 1 Fabricator Hacks . | . . . Repair Station Hacks 8 | . 4 4 Scan Component 4 | . 2 2 Repair 4 | . 2 2 Recycling Unit Hacks 1 | . 1 . Retrieve Components 1 | . 1 . Scanalyzer . | . . . Garrison Access Hacks . | . . . Unauthorized Hacks 12 | . 8 4 Terminals 9 | . 5 4 Track 1 | . 1 . Botnet 6 | . 3 3 Operators 2 | . 1 1 Fabricators . | . . . Repair Stations . | . . . Recycling Units 3 | . 3 . Reject 2 | . 2 . Recyclers 1 | . 1 . Scanalyzers . | . . . Garrison Access . | . . . Data Cores Recovered 1 | . 1 . Used . | . . . Hacking Detections 12 | . 6 6 Full Trace Events . | . . . Feedback Events . | . . . Feedback Blocked . | . . . Robot Schematics Acquired . | . . . Robots Built . | . . . Authchips . | . . . Time . | . . . Total Robot Build Rating . | . . . Part Schematics Acquired . | . . . Parts Built . | . . . Authchips . | . . . Time . | . . . Total Part Build Rating . | . . . Parts Repaired 4 | . 2 2 Time 110 | . 52 58 Parts Recycled . | . . . Recycled Matter . | . . . Retrieved Matter . | . . . Retrieved Components 3 | . 3 . Parts Scanalyzed . | . . . Part Schematics Acquired . | . . . Parts Damaged . | . . . Bothacking | -11 -10 -9 ------------ Run | Scr Mat Mat Used RIF Installer . | . . . Robots Hacked . | . . . Non-combat . | . . . Combat . | . . . Robot Hacks Applied . | . . . Relay Couplers Released . | . . . Fabnet Peak Effective % . | . . . Robots Rewired . | . . . Allies Hacked . | . . . Hacks Repelled . | . . . Allies | -11 -10 -9 -------- Run | Scr Mat Mat Total Allies . | . . . Largest Group . | . . . Highest-Rated Group . | . . . Highest-Rated Ally . | . . . Total Orders . | . . . Ally Attacks . | . . . Total Damage . | . . . Kills . | . . . Allies Corrupted . | . . . Allies Melted . | . . . Intel | -11 -10 -9 ------- Run | Scr Mat Mat Robot Analysis Total 2 | . 2 . Derelict Logs Recovered . | . . . Drone Launches . | . . . Drone Recoveries . | . . . Exploration | -11 -10 -9 ------------- Run | Scr Mat Mat Turns Passed 2089 | 58 1116 915 Spaces Moved 985 | 44 539 402 Core 6 | 4 . 2 Treads . | . . . Legs 825 | . 425 400 Wheels 154 | 40 114 . Hover . | . . . Flight . | . . . Fastest Speed 50 | 50 100 120 Average Speed 142 | 95 154 131 Slowest Speed 260 | 100 260 260 Overloaded Moves . | . . . Propulsion Burnouts . | . . . Robots Hopped . | . . . Cave-ins Triggered . | . . . Exploration Rate (%) 44 | 3 82 48 Regions Visited 2 Branch Regions . Pre-discovered Areas . | . . . Known Exits Taken . | . . . Unknown Exits Taken 2 | 1 1 . Scrap Searched . | . . . Spaces Dug 2 | . . 2 Terrain Destroyed 2 | . . 2 Melee 2 | . . 2 Projectile . | . . . AOE . | . . . Terrain Rammed . | . . . Walls Destroyed . | . . . Machines Disabled . | . . . Actions | -11 -10 -9 --------- Run | Scr Mat Mat Total 1448 | 59 722 667 Wait 224 | . 69 155 Move 983 | 43 538 402 Hop . | . . . Pick Up 45 | 10 26 9 Fast Attach 9 | 2 2 5 Attach 14 | 4 3 7 Detach 2 | . 1 1 Swap 31 | . 14 17 Drop 24 | . 18 6 Fire 78 | . 51 27 Melee 38 | . . 38 Ram . | . . . Kick . | . . . Crush . | . . . Escape Stasis . | . . . Rewire . | . . . Trap . | . . . Miscellaneous . | . . . Route ------- -11/Scrapyard -10/Materials (discovered 4 exits: *Mat x2 / [*Min x2]) -9/Materials (discovered 3 exits: [*Mat] / [*Min x2]) History --------- Turn | Location | Event 21 | -11/Scrapyard | Discovered new exit (range 15) 59 | -11/Scrapyard | Entered Materials 306 | -10/Materials | Build established: Mutant 455 | -10/Materials | Discovered new exit (range 12) 691 | -10/Materials | Discovered new exit (range 15) 811 | -10/Materials | Core integrity fell below 50% 928 | -10/Materials | Central database locked down 946 | -10/Materials | Discovered new exit (range 14) 1080 | -10/Materials | Repaired Weapon Shielding 1107 | -10/Materials | Repaired Seismic Detector 1137 | -10/Materials | Discovered new exit (range 8) 1175 | -10/Materials | Entered another Materials area 1175 | -9/Materials | Evolved 2 slots: Utility x2 1608 | -9/Materials | Discovered new exit (range 16) 1701 | -9/Materials | Repaired Imp. Aluminum Leg 1728 | -9/Materials | Repaired Weapon Shielding 1745 | -9/Materials | Discovered new exit (range 7) 1795 | -9/Materials | Build established: Scavenger-Mutant 1942 | -9/Materials | Discovered new exit (range 16) 2037 | -9/Materials | Core integrity fell below 50% 2075 | -9/Materials | Core integrity fell below 20% 2090 | -9/Materials | Destroyed by Y-45 Defender with Beam Rifle Last Messages --------------- 02043_ S-10 Pest destroyed. 02043_ R-06 Scavenger collects Lgt. Assault Rifle. 02044_ K-01 Serf collects debris. 02046_ S-10 Pest destroyed. 02046_ R-06 Scavenger collects Flight Unit. 02048_ K-01 Serf collects debris. 02059_ Critical hit (Burn: +37). 02059_ Lgt. Armor Plating destroyed. 02060_ Acquired 18 matter. 02062_ Katana follow-up attack on Y-45 Defender. 02064_ Imp. Aluminum Leg destroyed. 02068_ Ion Engine destroyed. 02069_ Imp. Aluminum Leg destroyed. 02071_ Y-45 Defender Lgt. Treads severed. 02074_ Katana follow-up attack on Y-45 Defender. 02074_ S-10 Pest destroyed. 02077_ Y-45 Defender Imp. Ion Engine severed. 02081_ Critical hit (Burn: +37). 02083_ Y-45 Defender destroyed. 02087_ Imp. Aluminum Leg destroyed. Map ----- +----------------------------------------------------+ | | | | | | | | | | | | | | | | | | | | | | | | | ???????????????????????????????????????????????? | | ???????????????????????????????????????????????? | | ???????????????????????????????????????????????? | | ????????????????????############################ | | ????????????????????# | | ????????????????????# < | | ????????????????????# | | ????????????????????####+######+#############+## | | ?????????????????????# # #????# | | ?????????????????????# """# """ #????# | | ?????????###+######??# """# """ #????#[ | | ?????????# ####%% """# """ #????# | | ?????????# k/=*=%[ # #????# !! | | ????????#" """ ###*@Yk # """ #????# ! | | ????????#T "Y" #?#####+## """ #????###### | | ????????#" #????????# [""" #?????????? | | ????????## [ ???# #?????????? | | ????????# ###########?????????? | | ????????+ #???????????????????? | | ????????# ! #???????????????????? | | ????????###+## #???????????????????? | | ?????????????### ######### #???????????????????? | | ???????????????# #?????????#???????????????????? | | ???????????????# #?????????????????????????????? | | ???????????????# ??????????????????????????????? | | ???????????????# ??????????????????????????????? | | ???????????????# ??????????????????????????????? | | ???????????????# ??????????????????????????????? | | ???????????????? ??????????????????????????????? | | ???????????????? ??????????????????????????????? | | ???????????????? ??????????????????????????????? | | ???????????????????????????????????????????????? | | ???????????????????????????????????????????????? | | ???????????????????????????????????????????????? | | ???????????????????????????????????????????????? | | ???????????????????????????????????????????????? | | ???????????????????????????????????????????????? | | ???????????????????????????????????????????????? | +----------------------------------------------------+ Best States ------------- Heat Dissipation 28 Energy Generation 14 Energy Capacity 280 Matter Stores 300 Matter Capacity 300 Sight Range 16 Terrain Scan Density 10 Additional Mass Support 6 Armor Coverage 150 Core Shielding 20 Weapon Shielding 33 Evasion (%) 55 Melee Accuracy 5 Offensive Hacking 10 Item Schematics ----------------- None Robot Schematics ------------------ None Fabricated ------------ Nothing Alien Tech Used ----------------- None Achievements -------------- None Challenges ------------ None Game ------ Seed DecoyWarpTorch Manual? 0 Play Time 00:22:28 Cumulative 962.4 hours Start 2022.11.29 @ 01:01:06 End 2022.11.29 @ 01:21:41 Sessions 1 Manual Loads 0 Difficulty Rogue Special Mode None Game No. 380 Rogue 380 Adventurer 0 Explorer 0 Win Type - Total 13 Types 12/0/1/0/0/0/0/0/0 Lore% 71 Gallery% 81 Achievement% 70 Wizard Run 0 Options --------- ASCII 0 Keyboard 1 Movement Numpad Keybinds 0 Fullscreen 2 Font 18/SmallcapsGlow Map View 112x50 Tactical HUD 1 Map Filters NONE Filters NONE Steam 1 RUN: 882dace0-08ac-49fc-b76a-e11163b7fa37